[Event "*** SCC Grand Prix: Titled Tuesday Blitz"]
[Site "Chess.com"]
[Date "2020.06.23"]
[Round "3"]
[White "HouseOfDurin"]
[Black "dennisodessa"]
[Result "0-1"]
[WhiteElo "1909"]
[BlackElo "2249"]
[TimeControl "180+1"]
[EndTime "10:30:17 PDT"]
[Termination "dennisodessa won by checkmate"]

1. d4 {[%clk 0:03:00.9]} 1... Nf6 {[%clk 0:02:57.3]} 2. Bg5 {[%clk 0:03:01.3]}
2... c5 {[%clk 0:02:56.4]} 3. Bxf6 {[%clk 0:03:01.2]} 3... exf6 {[%clk
0:02:55.4]} 4. c3 {[%clk 0:03:01.8]} 4... Nc6 {[%clk 0:02:46.8]} 5. e3 {[%clk
0:03:01.3]} 5... Qb6 {[%clk 0:02:47]} 6. Qc2 {[%clk 0:02:55.9]} 6... d5 {[%clk
0:02:43.8]} 7. Nd2 {[%clk 0:02:46.6]} 7... g6 {[%clk 0:02:37.3]} 8. g3 {[%clk
0:02:45.3]} 8... Bf5 {[%clk 0:02:33.4]} 9. Qb3 {[%clk 0:02:45.2]} 9... Qxb3
{[%clk 0:02:10.5]} 10. axb3 {[%clk 0:02:34.5]} 10... cxd4 {[%clk 0:02:11.1]} 11.
exd4 {[%clk 0:02:34]} 11... Be4 {[%clk 0:01:44.8]} 12. f3 {[%clk 0:02:27]} 12...
Bf5 {[%clk 0:01:43.8]} 13. Bg2 {[%clk 0:02:14.5]} 13... Rd8 {[%clk 0:01:25.9]}
14. Kf2 {[%clk 0:02:11]} 14... Be7 {[%clk 0:01:11.2]} 15. b4 {[%clk 0:02:09.4]}
15... a6 {[%clk 0:01:10.8]} 16. Nb3 {[%clk 0:01:47.8]} 16... O-O {[%clk
0:01:09.9]} 17. Nc5 {[%clk 0:01:47.6]} 17... Bxc5 {[%clk 0:01:10.2]} 18. bxc5
{[%clk 0:01:47.5]} 18... Rfe8 {[%clk 0:01:08]} 19. Ne2 {[%clk 0:01:45.6]} 19...
g5 {[%clk 0:00:56.5]} 20. Rhe1 {[%clk 0:01:45]} 20... Bd3 {[%clk 0:00:56.6]} 21.
f4 {[%clk 0:01:34.6]} 21... Be4 {[%clk 0:00:51.9]} 22. Bxe4 {[%clk 0:01:34.1]}
22... Rxe4 {[%clk 0:00:45.7]} 23. fxg5 {[%clk 0:00:54.7]} 23... fxg5 {[%clk
0:00:45.4]} 24. Ng1 {[%clk 0:00:50.6]} 24... f5 {[%clk 0:00:43.4]} 25. Nf3
{[%clk 0:00:47.6]} 25... h6 {[%clk 0:00:39.3]} 26. Nd2 {[%clk 0:00:47]} 26...
Rxe1 {[%clk 0:00:37.2]} 27. Rxe1 {[%clk 0:00:47.9]} 27... Kf7 {[%clk 0:00:37.9]}
28. Nf3 {[%clk 0:00:33.1]} 28... Re8 {[%clk 0:00:37.5]} 29. Rxe8 {[%clk
0:00:32.1]} 29... Kxe8 {[%clk 0:00:37.5]} 30. h4 {[%clk 0:00:32.2]} 30... g4
{[%clk 0:00:37.3]} 31. Ne1 {[%clk 0:00:05.2]} 31... Kd7 {[%clk 0:00:26.1]} 32.
Nd3 {[%clk 0:00:05.7]} 32... Ne7 {[%clk 0:00:26.8]} 33. Ne5+ {[%clk 0:00:05.1]}
33... Kc7 {[%clk 0:00:27]} 34. Nf7 {[%clk 0:00:04.8]} 34... h5 {[%clk 0:00:23]}
35. Ne5 {[%clk 0:00:04.1]} 35... b6 {[%clk 0:00:23.6]} 36. cxb6+ {[%clk
0:00:01.6]} 36... Kxb6 {[%clk 0:00:24.4]} 37. Ke3 {[%clk 0:00:02.2]} 37... Kb5
{[%clk 0:00:25]} 38. Kf4 {[%clk 0:00:02.5]} 38... Ka4 {[%clk 0:00:25]} 39. Nf7
{[%clk 0:00:02.7]} 39... Kb3 {[%clk 0:00:25.7]} 40. Nd6 {[%clk 0:00:03.3]} 40...
Kxb2 {[%clk 0:00:25.9]} 41. Nxf5 {[%clk 0:00:04.2]} 41... Nxf5 {[%clk
0:00:25.4]} 42. Kxf5 {[%clk 0:00:05.1]} 42... a5 {[%clk 0:00:26]} 43. Ke5 {[%clk
0:00:06]} 43... a4 {[%clk 0:00:26.7]} 44. Kxd5 {[%clk 0:00:06.6]} 44... a3
{[%clk 0:00:27.4]} 45. c4 {[%clk 0:00:07.5]} 45... a2 {[%clk 0:00:28.1]} 46. c5
{[%clk 0:00:08.4]} 46... a1=Q {[%clk 0:00:28.1]} 47. c6 {[%clk 0:00:09.3]} 47...
Qa8 {[%clk 0:00:22.5]} 48. Kd6 {[%clk 0:00:08.2]} 48... Qd8+ {[%clk 0:00:22.2]}
49. Kc5 {[%clk 0:00:08.2]} 49... Kb3 {[%clk 0:00:19.9]} 50. d5 {[%clk
0:00:08.4]} 50... Ka4 {[%clk 0:00:19.8]} 51. d6 {[%clk 0:00:08.6]} 51... Qa5+
{[%clk 0:00:19.9]} 52. Kd4 {[%clk 0:00:08.9]} 52... Kb4 {[%clk 0:00:19.6]} 53.
d7 {[%clk 0:00:08.5]} 53... Qc7 {[%clk 0:00:19.4]} 54. Kd5 {[%clk 0:00:08.6]}
54... Kb5 {[%clk 0:00:19.8]} 55. Ke6 {[%clk 0:00:04.5]} 55... Kxc6 {[%clk
0:00:19.7]} 56. Kf5 {[%clk 0:00:03.6]} 56... Qxd7+ {[%clk 0:00:19.2]} 57. Kg6
{[%clk 0:00:03.3]} 57... Qd6+ {[%clk 0:00:18.7]} 58. Kxh5 {[%clk 0:00:03]} 58...
Qxg3 {[%clk 0:00:19.2]} 59. Kg5 {[%clk 0:00:03.2]} 59... Qh3 {[%clk 0:00:19.5]}
60. h5 {[%clk 0:00:04.1]} 60... g3 {[%clk 0:00:20.2]} 61. h6 {[%clk 0:00:04.9]}
61... g2 {[%clk 0:00:20.9]} 62. Kg6 {[%clk 0:00:05.2]} 62... g1=Q+ {[%clk
0:00:20.3]} 63. Kh7 {[%clk 0:00:06.1]} 63... Qg5 {[%clk 0:00:18.1]} 64. Kh8
{[%clk 0:00:06.7]} 64... Qhxh6# {[%clk 0:00:18.7]} 0-1

[Event "*** SCC Grand Prix: Titled Tuesday Blitz"]
[Site "Chess.com"]
[Date "2020.06.23"]
[Round "3"]
[White "Dr_crypt"]
[Black "ExtremeLearner"]
[Result "0-1"]
[WhiteElo "2349"]
[BlackElo "2189"]
[TimeControl "180+1"]
[EndTime "10:30:22 PDT"]
[Termination "ExtremeLearner won by resignation"]

1. d4 {[%clk 0:03:00.6]} 1... Nf6 {[%clk 0:02:51.4]} 2. Nf3 {[%clk 0:03:00]}
2... g6 {[%clk 0:02:49.5]} 3. c4 {[%clk 0:02:57.8]} 3... Bg7 {[%clk 0:02:48.9]}
4. Nc3 {[%clk 0:02:56.3]} 4... d6 {[%clk 0:02:49.6]} 5. Bf4 {[%clk 0:02:56.2]}
5... O-O {[%clk 0:02:49.6]} 6. e3 {[%clk 0:02:55]} 6... c6 {[%clk 0:02:48.4]} 7.
h3 {[%clk 0:02:54.6]} 7... Nbd7 {[%clk 0:02:49.3]} 8. Be2 {[%clk 0:02:54.1]}
8... a5 {[%clk 0:02:49]} 9. O-O {[%clk 0:02:53.8]} 9... Re8 {[%clk 0:02:49.2]}
10. a3 {[%clk 0:02:50.5]} 10... e5 {[%clk 0:02:49.3]} 11. dxe5 {[%clk
0:02:50.3]} 11... dxe5 {[%clk 0:02:50.2]} 12. Nxe5 {[%clk 0:02:50.2]} 12... Nxe5
{[%clk 0:02:44.2]} 13. Qxd8 {[%clk 0:02:49.5]} 13... Rxd8 {[%clk 0:02:44.3]} 14.
Bxe5 {[%clk 0:02:49.7]} 14... Be6 {[%clk 0:02:45.1]} 15. Rfd1 {[%clk 0:02:47.2]}
15... Nd7 {[%clk 0:02:38.7]} 16. Bxg7 {[%clk 0:02:46.8]} 16... Kxg7 {[%clk
0:02:39.6]} 17. Na4 {[%clk 0:02:37.9]} 17... Rab8 {[%clk 0:02:28.6]} 18. Rac1
{[%clk 0:02:02.5]} 18... b5 {[%clk 0:02:13.2]} 19. cxb5 {[%clk 0:02:00.9]} 19...
cxb5 {[%clk 0:02:14.1]} 20. Nc3 {[%clk 0:01:27.8]} 20... b4 {[%clk 0:02:09.1]}
21. Nb5 {[%clk 0:01:27.7]} 21... bxa3 {[%clk 0:02:03.5]} 22. bxa3 {[%clk
0:01:28.6]} 22... Nf6 {[%clk 0:02:00.1]} 23. Rxd8 {[%clk 0:01:26.9]} 23... Rxd8
{[%clk 0:02:01]} 24. Rc7 {[%clk 0:01:25.3]} 24... Ne4 {[%clk 0:01:45.8]} 25. Nd4
{[%clk 0:01:24]} 25... Bd5 {[%clk 0:01:37.3]} 26. Ra7 {[%clk 0:01:15]} 26... Ra8
{[%clk 0:01:24]} 27. Rxa8 {[%clk 0:01:12.8]} 27... Bxa8 {[%clk 0:01:24.9]} 28.
Bf3 {[%clk 0:01:11.9]} 28... f5 {[%clk 0:01:23.5]} 29. g4 {[%clk 0:01:10.2]}
29... Kf6 {[%clk 0:01:18.8]} 30. Bxe4 {[%clk 0:01:07.8]} 30... fxe4 {[%clk
0:01:13.2]} 31. Kg2 {[%clk 0:00:58.3]} 31... Ke5 {[%clk 0:01:12.4]} 32. Kg3
{[%clk 0:00:57.7]} 32... Bd5 {[%clk 0:01:09.2]} 33. h4 {[%clk 0:00:55.2]} 33...
a4 {[%clk 0:01:03.4]} 34. g5 {[%clk 0:00:51.3]} 34... Bb3 {[%clk 0:01:01.3]} 35.
Kg4 {[%clk 0:00:44.8]} 35... Bd1+ {[%clk 0:00:59.7]} 36. Kg3 {[%clk 0:00:44.8]}
36... Kd5 {[%clk 0:00:59.7]} 37. Kf4 {[%clk 0:00:42.6]} 37... Bb3 {[%clk
0:00:47.4]} 38. Ne2 {[%clk 0:00:34.8]} 38... Bc2 {[%clk 0:00:43.8]} 39. Nd4
{[%clk 0:00:26]} 39... Bd3 {[%clk 0:00:43.6]} 40. f3 {[%clk 0:00:23.6]} 40...
exf3 {[%clk 0:00:27.3]} 41. Kxf3 {[%clk 0:00:24.5]} 41... Kc4 {[%clk 0:00:22.7]}
42. Kf4 {[%clk 0:00:24.6]} 42... Kc3 {[%clk 0:00:21.6]} 43. Ne6 {[%clk
0:00:21.3]} 43... Kb2 {[%clk 0:00:20]} 44. Nc5 {[%clk 0:00:21.8]} 44... Bb5
{[%clk 0:00:18]} 45. e4 {[%clk 0:00:21.1]} 45... Kxa3 {[%clk 0:00:18.1]} 46. Ke5
{[%clk 0:00:16.6]} 46... Kb4 {[%clk 0:00:18.2]} 47. Nxa4 {[%clk 0:00:16.8]}
47... Bxa4 {[%clk 0:00:16.6]} 48. Kf6 {[%clk 0:00:16.4]} 48... Kc5 {[%clk
0:00:15.8]} 49. e5 {[%clk 0:00:16.7]} 49... Be8 {[%clk 0:00:13.3]} 50. Ke7
{[%clk 0:00:16.4]} 50... Bc6 {[%clk 0:00:05.6]} 51. e6 {[%clk 0:00:16.8]} 51...
Kd5 {[%clk 0:00:03.3]} 52. Kf7 {[%clk 0:00:15.6]} 52... Ke5 {[%clk 0:00:03.6]}
53. e7 {[%clk 0:00:15.9]} 53... Kf5 {[%clk 0:00:03.4]} 54. Kg7 {[%clk
0:00:15.7]} 54... Kg4 {[%clk 0:00:03]} 55. Kxh7 {[%clk 0:00:13.3]} 55... Be8
{[%clk 0:00:03.3]} 56. Kg7 {[%clk 0:00:12.1]} 56... Kxh4 {[%clk 0:00:03.5]} 57.
Kf8 {[%clk 0:00:12.8]} 57... Ba4 {[%clk 0:00:04.3]} 58. Kf7 {[%clk 0:00:09.6]}
58... Kxg5 {[%clk 0:00:04.1]} 0-1

[Event "*** SCC Grand Prix: Titled Tuesday Blitz"]
[Site "Chess.com"]
[Date "2020.06.23"]
[Round "3"]
[White "Richarzard69"]
[Black "Kapitan_Bayan"]
[Result "1-0"]
[WhiteElo "2282"]
[BlackElo "2452"]
[TimeControl "180+1"]
[EndTime "10:30:23 PDT"]
[Termination "Richarzard69 won by resignation"]

1. Nf3 {[%clk 0:03:00.9]} 1... Nf6 {[%clk 0:02:07.2]} 2. c4 {[%clk 0:03:01.8]}
2... e6 {[%clk 0:02:07]} 3. d4 {[%clk 0:03:01.1]} 3... d5 {[%clk 0:02:07.9]} 4.
g3 {[%clk 0:03:01.3]} 4... Be7 {[%clk 0:02:07.7]} 5. Bg2 {[%clk 0:03:01.6]} 5...
O-O {[%clk 0:02:08.2]} 6. O-O {[%clk 0:03:01.4]} 6... dxc4 {[%clk 0:02:08.7]} 7.
Qc2 {[%clk 0:03:01.1]} 7... b5 {[%clk 0:02:08.8]} 8. a4 {[%clk 0:02:55.4]} 8...
b4 {[%clk 0:02:09]} 9. Qxc4 {[%clk 0:02:49.4]} 9... Ba6 {[%clk 0:02:08.8]} 10.
Qc2 {[%clk 0:02:48.8]} 10... Bb7 {[%clk 0:01:58.5]} 11. Rd1 {[%clk 0:02:38.7]}
11... Be4 {[%clk 0:01:54.1]} 12. Qb3 {[%clk 0:02:31.7]} 12... Bd5 {[%clk
0:01:49]} 13. Qd3 {[%clk 0:02:25.7]} 13... Nbd7 {[%clk 0:01:45]} 14. Nbd2 {[%clk
0:02:23]} 14... c5 {[%clk 0:01:44.8]} 15. e4 {[%clk 0:02:16]} 15... Bb7 {[%clk
0:01:40.3]} 16. e5 {[%clk 0:01:59.6]} 16... Nd5 {[%clk 0:01:36.4]} 17. Ne4
{[%clk 0:01:53.2]} 17... cxd4 {[%clk 0:01:34.6]} 18. Neg5 {[%clk 0:01:45]} 18...
g6 {[%clk 0:01:25.2]} 19. Qxd4 {[%clk 0:01:42.6]} 19... Re8 {[%clk 0:00:49.1]}
20. Qh4 {[%clk 0:01:34.8]} 20... Nf8 {[%clk 0:00:44.3]} 21. Qh6 {[%clk
0:01:24.6]} 21... f6 {[%clk 0:00:38.6]} 22. exf6 {[%clk 0:00:58]} 22... Bxf6
{[%clk 0:00:39.5]} 23. Bf4 {[%clk 0:00:48.2]} 23... Qb6 {[%clk 0:00:20.3]} 24.
Be5 {[%clk 0:00:44.6]} 24... Bxe5 {[%clk 0:00:09.3]} 25. Nxe5 {[%clk 0:00:45.5]}
25... Qc7 {[%clk 0:00:08.8]} 26. f4 {[%clk 0:00:39.5]} 26... Qg7 {[%clk
0:00:08.2]} 27. Qh4 {[%clk 0:00:37.9]} 27... h6 {[%clk 0:00:06.7]} 28. Ngf7
{[%clk 0:00:36.2]} 28... Kh7 {[%clk 0:00:04.5]} 29. Rac1 {[%clk 0:00:31.6]}
29... Re7 {[%clk 0:00:04.5]} 30. Nd6 {[%clk 0:00:30.7]} 30... Rb8 {[%clk
0:00:03.5]} 31. Nxb7 {[%clk 0:00:28]} 31... Rbxb7 {[%clk 0:00:04.4]} 32. Bxd5
{[%clk 0:00:27.9]} 32... exd5 {[%clk 0:00:04.8]} 33. Rxd5 {[%clk 0:00:28]} 33...
g5 {[%clk 0:00:05.2]} 34. Qg4 {[%clk 0:00:19.6]} 34... gxf4 {[%clk 0:00:05.2]}
35. Qf5+ {[%clk 0:00:19.2]} 35... Kh8 {[%clk 0:00:04.8]} 36. Rd8 {[%clk
0:00:16.7]} 36... Kg8 {[%clk 0:00:03]} 37. Ng6 {[%clk 0:00:15.2]} 37... Rf7
{[%clk 0:00:01.7]} 38. Rxf8+ {[%clk 0:00:08.7]} 38... Rxf8 {[%clk 0:00:01.5]}
39. Nxf8 {[%clk 0:00:08.8]} 39... Qxf8 {[%clk 0:00:02.4]} 40. Qd5+ {[%clk
0:00:07.9]} 40... Rf7 {[%clk 0:00:02.4]} 41. Rc6 {[%clk 0:00:07.1]} 41... Qg7
{[%clk 0:00:02.6]} 42. Rc8+ {[%clk 0:00:06.5]} 42... Kh7 {[%clk 0:00:02.9]} 43.
Qd8 {[%clk 0:00:06.3]} 43... fxg3 {[%clk 0:00:02.2]} 44. Qd3+ {[%clk 0:00:06.8]}
44... Qg6 {[%clk 0:00:02]} 45. Rh8+ {[%clk 0:00:06.7]} 45... Kg7 {[%clk
0:00:01.9]} 46. Rg8+ {[%clk 0:00:07.1]} 46... Kxg8 {[%clk 0:00:02.8]} 47. Qxg6+
{[%clk 0:00:07.2]} 47... Rg7 {[%clk 0:00:03.6]} 48. Qe6+ {[%clk 0:00:07.8]}
48... Kh8 {[%clk 0:00:03.7]} 49. hxg3 {[%clk 0:00:08.2]} 49... Rxg3+ {[%clk
0:00:04.3]} 50. Kh2 {[%clk 0:00:08.8]} 50... Rg7 {[%clk 0:00:03.9]} 51. Qe8+
{[%clk 0:00:09.1]} 51... Kh7 {[%clk 0:00:04.1]} 52. Qe4+ {[%clk 0:00:09.7]}
52... Kh8 {[%clk 0:00:03.3]} 53. Qxb4 {[%clk 0:00:10.6]} 53... h5 {[%clk
0:00:03.2]} 54. Qd4 {[%clk 0:00:10.9]} 54... Kh7 {[%clk 0:00:03.4]} 55. b4
{[%clk 0:00:10.9]} 55... Kh6 {[%clk 0:00:03.8]} 56. Qf6+ {[%clk 0:00:10.3]}
56... Rg6 {[%clk 0:00:03.9]} 57. Qf4+ {[%clk 0:00:10.2]} 57... Kg7 {[%clk
0:00:04.3]} 58. Qd4+ {[%clk 0:00:10.2]} 58... Kh6 {[%clk 0:00:04.3]} 59. Qxa7
{[%clk 0:00:10.2]} 59... h4 {[%clk 0:00:04]} 60. Qe3+ {[%clk 0:00:10.1]} 60...
Kh5 {[%clk 0:00:04.2]} 61. a5 {[%clk 0:00:10.7]} 61... Rg4 {[%clk 0:00:03.9]}
62. b5 {[%clk 0:00:08.2]} 62... Ra4 {[%clk 0:00:03.7]} 63. a6 {[%clk 0:00:07.7]}
63... Ra2+ {[%clk 0:00:03.3]} 64. Kh3 {[%clk 0:00:07.1]} 64... Rb2 {[%clk
0:00:02.2]} 65. Qe8+ {[%clk 0:00:06.2]} 65... Kh6 {[%clk 0:00:01.9]} 66. Qf8+
{[%clk 0:00:06.3]} 66... Kg6 {[%clk 0:00:02.2]} 67. Qg8+ {[%clk 0:00:06.3]}
67... Kf5 {[%clk 0:00:03.1]} 68. Qf7+ {[%clk 0:00:05.9]} 68... Ke4 {[%clk
0:00:03.7]} 69. Qe7+ {[%clk 0:00:05.9]} 69... Kd3 {[%clk 0:00:04.5]} 70. Qd6+
{[%clk 0:00:06]} 70... Kc2 {[%clk 0:00:05.4]} 71. Qc5+ {[%clk 0:00:06]} 71...
Kb1 {[%clk 0:00:06.3]} 72. Qf5+ {[%clk 0:00:06]} 72... Ka1 {[%clk 0:00:05.6]}
73. Qe5 {[%clk 0:00:06]} 73... Ka2 {[%clk 0:00:05.9]} 74. Qxb2+ {[%clk
0:00:06.9]} 74... Kxb2 {[%clk 0:00:06.8]} 75. a7 {[%clk 0:00:07.5]} 75... Kc3
{[%clk 0:00:07.7]} 76. a8=Q {[%clk 0:00:08]} 76... Kd4 {[%clk 0:00:08.6]} 77. b6
{[%clk 0:00:08.1]} 77... Kc5 {[%clk 0:00:09.4]} 78. b7 {[%clk 0:00:09]} 78...
Kd6 {[%clk 0:00:10.1]} 79. b8=Q+ {[%clk 0:00:09.9]} 1-0

[Event "*** SCC Grand Prix: Titled Tuesday Blitz"]
[Site "Chess.com"]
[Date "2020.06.23"]
[Round "3"]
[White "kintoho"]
[Black "antoszu"]
[Result "0-1"]
[WhiteElo "2362"]
[BlackElo "2552"]
[TimeControl "180+1"]
[EndTime "10:30:25 PDT"]
[Termination "antoszu won on time"]

1. e4 {[%clk 0:03:00.9]} 1... c5 {[%clk 0:02:58.8]} 2. Nf3 {[%clk 0:02:59.6]}
2... d6 {[%clk 0:02:59.1]} 3. Bc4 {[%clk 0:02:58.8]} 3... e6 {[%clk 0:02:57.1]}
4. d3 {[%clk 0:02:58.7]} 4... Nc6 {[%clk 0:02:56.2]} 5. c3 {[%clk 0:02:56.5]}
5... Nf6 {[%clk 0:02:54.7]} 6. Bb3 {[%clk 0:02:56.3]} 6... Be7 {[%clk
0:02:52.1]} 7. O-O {[%clk 0:02:56.3]} 7... O-O {[%clk 0:02:52.1]} 8. Re1 {[%clk
0:02:56.4]} 8... d5 {[%clk 0:02:32]} 9. Nbd2 {[%clk 0:02:55.5]} 9... d4 {[%clk
0:02:26.2]} 10. cxd4 {[%clk 0:02:46.7]} 10... cxd4 {[%clk 0:02:24.3]} 11. Nf1
{[%clk 0:02:28.4]} 11... Na5 {[%clk 0:02:01.9]} 12. Bc2 {[%clk 0:02:26.1]} 12...
b5 {[%clk 0:01:57.3]} 13. Bd2 {[%clk 0:02:21.7]} 13... Nc6 {[%clk 0:01:52.3]}
14. a3 {[%clk 0:02:13.3]} 14... a5 {[%clk 0:01:50.9]} 15. Ng3 {[%clk 0:02:04.4]}
15... b4 {[%clk 0:01:38.3]} 16. Ba4 {[%clk 0:02:01.8]} 16... Bd7 {[%clk
0:01:28]} 17. e5 {[%clk 0:01:56.8]} 17... Nd5 {[%clk 0:01:21.7]} 18. Bxc6 {[%clk
0:01:56.2]} 18... Bxc6 {[%clk 0:01:22.6]} 19. Nxd4 {[%clk 0:01:56.4]} 19... Bb7
{[%clk 0:01:23.3]} 20. Nf3 {[%clk 0:01:51.3]} 20... Nb6 {[%clk 0:01:17.1]} 21.
axb4 {[%clk 0:01:45.9]} 21... axb4 {[%clk 0:01:15.9]} 22. Rxa8 {[%clk
0:01:41.9]} 22... Qxa8 {[%clk 0:01:16.8]} 23. Ne4 {[%clk 0:01:39.6]} 23... Rd8
{[%clk 0:01:13]} 24. Qe2 {[%clk 0:01:31.6]} 24... Ba6 {[%clk 0:01:10.7]} 25. Qe3
{[%clk 0:01:22.5]} 25... Nd5 {[%clk 0:01:08.5]} 26. Qe2 {[%clk 0:01:12.4]} 26...
Nc7 {[%clk 0:01:07.9]} 27. Nd6 {[%clk 0:01:07.4]} 27... Bxd6 {[%clk 0:01:05.6]}
28. exd6 {[%clk 0:01:07]} 28... Rxd6 {[%clk 0:01:04.5]} 29. Bf4 {[%clk
0:01:06.8]} 29... Rd7 {[%clk 0:00:44.6]} 30. Bxc7 {[%clk 0:01:06.5]} 30... Rxc7
{[%clk 0:00:44.3]} 31. Qe5 {[%clk 0:01:01.2]} 31... Rd7 {[%clk 0:00:40.9]} 32.
d4 {[%clk 0:00:56.8]} 32... Bb7 {[%clk 0:00:37.9]} 33. Qc5 {[%clk 0:00:45.8]}
33... Bxf3 {[%clk 0:00:19.8]} 34. gxf3 {[%clk 0:00:45.8]} 34... Rd5 {[%clk
0:00:20.3]} 35. Qxb4 {[%clk 0:00:39.3]} 35... Rg5+ {[%clk 0:00:20.4]} 36. Kf1
{[%clk 0:00:39.6]} 36... h6 {[%clk 0:00:20.6]} 37. Qb3 {[%clk 0:00:29.6]} 37...
Rf5 {[%clk 0:00:18.6]} 38. Re3 {[%clk 0:00:27.9]} 38... Qa1+ {[%clk 0:00:17.4]}
39. Ke2 {[%clk 0:00:28.1]} 39... Qa6+ {[%clk 0:00:15]} 40. Qd3 {[%clk
0:00:26.6]} 40... Rb5 {[%clk 0:00:15.1]} 41. Kf1 {[%clk 0:00:19.8]} 41... Qa1+
{[%clk 0:00:14.9]} 42. Kg2 {[%clk 0:00:19.1]} 42... Qxb2 {[%clk 0:00:15.5]} 43.
Re2 {[%clk 0:00:16.9]} 43... Qb4 {[%clk 0:00:14.9]} 44. Rc2 {[%clk 0:00:16.3]}
44... g6 {[%clk 0:00:12.4]} 45. h4 {[%clk 0:00:13.3]} 45... Rd5 {[%clk
0:00:10.6]} 46. Rc4 {[%clk 0:00:13.5]} 46... Qd6 {[%clk 0:00:10]} 47. Qe3 {[%clk
0:00:12.9]} 47... Kg7 {[%clk 0:00:09.9]} 48. f4 {[%clk 0:00:10.4]} 48... Qe7
{[%clk 0:00:09.5]} 49. Kg3 {[%clk 0:00:10]} 49... Rh5 {[%clk 0:00:09.3]} 50. Kf3
{[%clk 0:00:09.4]} 50... Qxh4 {[%clk 0:00:09.5]} 51. Ke2 {[%clk 0:00:07.5]}
51... Rf5 {[%clk 0:00:09.5]} 52. Rc5 {[%clk 0:00:06.9]} 52... Qh5+ {[%clk
0:00:08.8]} 53. Kd2 {[%clk 0:00:05.1]} 53... Rd5 {[%clk 0:00:07.5]} 54. Rxd5
{[%clk 0:00:04.6]} 54... Qxd5 {[%clk 0:00:08.4]} 55. Ke2 {[%clk 0:00:04.1]}
55... Qc4+ {[%clk 0:00:07.2]} 56. Kf3 {[%clk 0:00:03.7]} 56... Qd5+ {[%clk
0:00:07.6]} 57. Ke2 {[%clk 0:00:03.7]} 57... h5 {[%clk 0:00:08.2]} 58. Kf1
{[%clk 0:00:02.8]} 58... h4 {[%clk 0:00:08.5]} 59. Kg1 {[%clk 0:00:03.1]} 59...
Qf5 {[%clk 0:00:08.2]} 60. Kh2 {[%clk 0:00:03]} 60... Qg4 {[%clk 0:00:07.6]} 61.
Qe5+ {[%clk 0:00:03.2]} 61... f6 {[%clk 0:00:07.7]} 62. Qc7+ {[%clk 0:00:03.1]}
62... Kh6 {[%clk 0:00:07.8]} 63. Qb8 {[%clk 0:00:03.4]} 63... g5 {[%clk
0:00:02.7]} 64. Qh8+ {[%clk 0:00:02.9]} 64... Kg6 {[%clk 0:00:03.1]} 65. Qg8+
{[%clk 0:00:03]} 65... Kf5 {[%clk 0:00:03.4]} 66. Qh7+ {[%clk 0:00:03.2]} 66...
Kxf4 {[%clk 0:00:03.6]} 67. Qd3 {[%clk 0:00:02.8]} 67... Qf3 {[%clk 0:00:03.7]}
0-1